bitfinex/quotes_ETHUSD_20251012
["timestamp","ask_amount","ask_price","bid_price","bid_amount"]
[1760252880824,8.66274779,3851.7,3851.6,0.002]
[1760252881339,6.0664916,3851.7,3851.6,0.002]
[1760252881706,4.1464916,3851.7,3851.6,0.002]
[1760252884737,24.80836979,3851.7,3851.6,0.002]
[1760252884890,25.21562683,3851.7,3851.6,0.002]
[1760252885616,14.73607883,3851.7,3851.6,0.002]
[1760252885824,12.13982264,3851.7,3851.6,0.002]
[1760252886010,14.73607883,3851.7,3851.6,0.002]
[1760252886199,13.04453683,3851.7,3851.6,0.002]
[1760252886912,18.54665683,3851.7,3851.6,0.002]
[1760252887254,0.001,3852.2,3852.1,3.2295866]
[1760252887417,0.001,3852.2,3852.1,1.60785866]
[1760252887727,0.001,3852.2,3852.1,3.8808866]
[1760252888604,0.001,3852.2,3852.1,3.6646866]
[1760252889314,0.001,3852.2,3852.1,1.0687]
[1760252889508,0.001,3852.2,3852.1,2.5959866]
[1760252892137,0.001,3852.2,3852.1,3.0310866]
[1760252895656,0.001,3852.2,3852.1,3.6646866]
[1760252895960,0.001,3852.2,3852.1,4.2907631]
[1760252896739,0.001,3852.2,3852.1,3.6571631]
[1760252896931,0.001,3852.2,3852.1,3.0310866]
[1760252897365,0.001,3852.2,3852.1,3.6646866]
[1760252900782,0.001,3852.6,3852.1,3.6646866]
[1760252900983,0.1296,3853.6,3852.9,2.59544758]
[1760252901133,2.5941683,3854.8,3853.0,0.4351]
[1760252901331,0.1296,3853.4,3853.1,0.6336]
[1760252901546,0.1296,3853.4,3853.3,3.22877815]
[1760252901761,0.1296,3853.4,3853.3,3.66387815]
[1760252902068,0.1583,3855.6,3853.3,3.66387815]
[1760252902376,0.1296,3854.5,3854.4,3.22803752]
[1760252902529,0.1296,3854.5,3854.4,3.66313752]
[1760252902967,0.1296,3854.5,3854.4,0.4351]
[1760252903174,2.0787,3855.8,3854.4,0.4351]
[1760252903175,2.0196,3855.6,3854.4,0.4351]
[1760252903374,0.3078,3855.8,3854.4,0.3851]
[1760252903672,4.348344,3855.7,3854.6,2.59426029]
[1760252903854,4.348344,3855.7,3854.8,2.5941196]
[1760252904250,1.92,3855.4,3854.3,0.2162]
[1760252904459,1.92,3855.0,3854.2,0.6336]
[1760252904658,2.0692,3855.3,3854.4,2.59438206]
[1760252904857,1.92,3854.9,3853.9,0.6336]
[1760252905153,1.92,3854.9,3854.4,2.59443716]
[1760252905358,1.92,3855.3,3854.4,2.59443716]
[1760252905554,10.304559,3855.0,3854.1,2.59457959]
[1760252905815,1.92,3854.9,3853.9,3.22837386]
[1760252906112,1.92,3854.9,3854.1,2.59463631]
[1760252906258,0.1492,3855.0,3854.1,2.59463631]
[1760252906693,1.92,3854.7,3853.4,2.82486067]
[1760252906880,6.906444,3854.3,3853.4,0.6601]
[1760252907264,6.906444,3854.3,3853.5,2.59503475]
[1760252907507,6.391098,3854.3,3853.5,2.59503475]
[1760252907795,1.92,3854.4,3853.4,0.2298]
[1760252908097,10.047067,3854.2,3853.4,2.59511034]
[1760252908504,1.92,3854.1,3852.5,0.4303]
[1760252908801,7.44209,3853.6,3853.1,2.59529472]
[1760252908961,7.44209,3853.6,3852.9,0.6336]
[1760252909161,7.44209,3853.6,3852.9,3.22898379]
[1760252909499,1.92,3853.5,3852.9,3.22898379]
[1760252909699,12.97036369,3853.8,3852.5,0.4303]
[1760252909895,12.97036369,3853.8,3852.4,0.2298]
[1760252909896,8.272031,3853.2,3852.4,2.82556879]
[1760252910287,6.214336,3853.2,3852.4,2.82556879]
[1760252911079,3.766248,3853.2,3852.5,2.59569919]
[1760252912000,1.92,3853.0,3852.4,0.2298]
[1760252912211,4.51524551,3853.2,3852.4,0.2298]
[1760252912714,4.51524551,3853.2,3852.4,2.59576698]
[1760252912891,1.92,3853.0,3852.4,2.59576698]
[1760252913203,0.1296,3852.5,3852.4,3.22936698]
[1760252913604,0.1296,3852.5,3852.4,3.65966698]
[1760252914221,0.1296,3852.5,3852.4,1.0639]
[1760252914570,0.1296,3852.5,3852.2,0.002]
[1760252914900,1.92,3852.6,3852.2,0.002]
[1760252915099,3.00267303,3852.8,3852.2,0.002]
[1760252915487,1.92,3852.6,3852.2,0.002]
[1760252915804,3.0026767,3852.8,3852.2,0.002]
[1760252916000,1.92,3852.6,3852.2,0.002]
[1760252916495,0.1493,3852.5,3852.2,0.002]
[1760252917332,15.8237361,3852.8,3852.2,0.002]
[1760252917333,14.74106369,3852.3,3852.2,0.002]
[1760252917626,27.86499951,3852.3,3852.2,0.002]
[1760252917779,24.67357751,3852.3,3852.2,0.002]
[1760252917977,8.42199782,3852.3,3852.2,0.002]
[1760252918503,12.26547982,3852.3,3852.2,0.002]
[1760252919011,11.40139882,3852.3,3852.2,0.002]
[1760252919202,4.66515182,3852.3,3852.2,0.002]
[1760252920811,19.98896582,3852.3,3852.2,0.002]
[1760252921020,17.05620182,3852.3,3852.2,0.002]
[1760252921826,13.69170382,3852.3,3852.2,0.002]
[1760252922619,15.07723382,3852.3,3852.2,0.002]
[1760252923214,14.21721682,3852.3,3852.2,0.002]
[1760252923616,18.24486581,3852.3,3852.2,0.002]
[1760252923817,16.97156281,3852.3,3852.2,0.002]
[1760252923992,16.37025181,3852.3,3852.2,0.002]
[1760252924605,10.26546381,3852.3,3852.2,0.002]
[1760252924804,9.92259081,3852.3,3852.2,0.002]
[1760252925618,5.07237581,3852.3,3852.2,0.002]
[1760252925933,21.45906281,3852.3,3852.2,0.002]
[1760252926616,20.89553681,3852.3,3852.2,0.002]
[1760252926822,22.34612881,3852.3,3852.2,0.002]
[1760252927617,20.45762781,3852.3,3852.2,0.002]
[1760252927789,15.88441781,3852.3,3852.2,0.002]
[1760252928617,10.65923481,3852.3,3852.2,0.002]
[1760252928829,7.39317481,3852.3,3852.2,0.002]
[1760252929591,11.53859404,3852.3,3852.2,0.002]
[1760252929793,35.67737027,3852.3,3852.2,0.002]
[1760252930097,35.15467527,3852.3,3852.2,0.002]
[1760252930834,41.33579127,3852.3,3852.2,0.002]
[1760252931186,39.39454027,3852.3,3852.2,0.002]
[1760252931618,37.12388927,3852.3,3852.2,0.002]
[1760252931822,37.11226627,3852.3,3852.2,0.002]
[1760252932024,35.64143827,3852.3,3852.2,0.002]
[1760252932927,38.04842727,3852.3,3852.2,0.002]
[1760252933534,2.59625619,3851.7,3851.6,0.002]
[1760252933695,8.66167542,3851.7,3851.6,0.002]
[1760252933897,37.78274942,3851.7,3851.6,0.002]
[1760252934102,37.25016342,3851.7,3851.6,0.002]
[1760252934336,34.93268042,3851.7,3851.6,0.002]
[1760252934734,31.75575242,3851.7,3851.6,0.002]
[1760252935028,33.26502342,3851.7,3851.6,0.002]
[1760252935823,38.81107542,3851.7,3851.6,0.002]
[1760252937011,39.21836586,3851.7,3851.6,0.002]
[1760252937521,40.29793437,3851.7,3851.6,0.002]
[1760252938495,29.42230801,3851.5,3851.4,0.002]
[1760252938701,31.34230801,3851.5,3851.4,0.002]
[1760252938921,33.31462601,3851.5,3851.4,0.002]
[1760252939128,33.46402601,3851.5,3851.4,0.002]
[1760252939527,2.59645843,3851.4,3851.3,0.002]
[1760252939847,31.41423217,3851.4,3851.3,0.002]
[1760252940146,30.12328317,3851.4,3851.3,0.002]
[1760252940308,25.28614417,3851.4,3851.3,0.002]
[1760252940644,22.55751617,3851.4,3851.3,0.002]
[1760252940852,9.89084617,3851.4,3851.3,0.002]
[1760252941044,25.87741717,3851.4,3851.3,0.002]
[1760252942015,32.92064117,3851.4,3851.3,0.002]
[1760252942929,37.34154617,3851.4,3851.3,0.002]
[1760252944045,39.89084617,3851.4,3851.3,0.002]
[1760252944243,39.89084617,3851.4,3850.9,0.002]
[1760252944244,4.51672812,3851.0,3850.9,0.002]
[1760252944424,39.74171586,3851.0,3850.9,0.002]
[1760252944620,39.89111586,3851.0,3850.9,0.002]
[1760252944820,40.29849755,3851.0,3850.9,0.002]
[1760252946932,10.29849755,3851.0,3850.9,0.002]
[1760252947131,40.29849755,3851.0,3850.9,0.002]
[1760252953831,2.59699787,3850.6,3850.5,0.002]
[1760252954169,2.59699787,3850.6,3850.1,0.002]
[1760252954170,34.51726767,3850.2,3850.1,0.002]
[1760252954356,39.74225541,3850.2,3850.1,0.002]
[1760252954558,39.89165541,3850.2,3850.1,0.002]
[1760252954891,1.92,3850.1,3848.1,0.6537]
[1760252955045,2.59712378,3850.5,3847.6,0.002]
[1760252955046,1.92,3848.4,3847.6,0.002]
[1760252955239,1.92,3848.4,3847.8,0.4368]
[1760252955439,1.92,3848.4,3847.9,0.6336]
[1760252955743,1.92,3848.4,3848.0,0.4348]
[1760252955944,1.92,3849.2,3848.1,0.4348]
[1760252956143,1.92,3848.7,3848.1,0.6718]
[1760252956770,4.51830923,3848.7,3848.1,0.6718]
[1760252956944,1.92,3848.3,3847.8,2.60088152]
[1760252957143,1.92,3848.3,3847.9,0.6336]
[1760252957850,1.92,3848.3,3847.8,0.6356]
[1760252958249,1.92,3848.3,3847.8,1.69744312]
[1760252958457,1.92,3848.3,3847.8,4.29630497]
[1760252959075,1.92,3848.3,3848.0,0.6336]
[1760252960438,2.129871,3848.5,3848.1,0.4348]
[1760252960860,2.129871,3848.5,3848.2,0.4348]
[1760252961447,2.129871,3848.5,3847.9,0.6336]
[1760252961941,2.129871,3848.5,3847.9,1.06343175]
[1760252962277,2.129871,3848.5,3847.9,3.66224084]
[1760252962971,7.82347022,3848.4,3847.9,1.06343175]
[1760252963267,2.59848248,3848.4,3847.9,1.49823175]
[1760252963472,7.82347022,3848.4,3847.9,1.49823175]
[1760252964183,7.82347022,3848.4,3847.9,1.06343175]
[1760252964475,2.5985733,3848.3,3847.9,0.6336]
[1760252964777,0.099,3848.3,3847.8,0.002]
[1760252965072,0.1296,3848.0,3847.8,0.6356]
[1760252965375,0.1296,3848.0,3847.8,1.0673]
[1760252965574,0.1296,3848.0,3847.8,0.6356]
[1760252965774,0.1296,3848.0,3847.9,0.4317]
[1760252966277,0.1296,3848.0,3847.9,1.0653]
[1760252970091,0.1296,3848.0,3847.9,0.6336]
[1760252971169,0.1296,3848.0,3847.9,0.6356]
[1760252973793,0.1296,3848.0,3847.9,3.66612013]
[1760252974152,0.1296,3848.0,3847.9,1.0673]
[1760252975391,0.1296,3848.0,3847.9,3.66612013]
[1760252977410,0.1296,3848.0,3847.9,1.0673]
[1760252978007,0.1296,3848.0,3847.9,0.6356]
[1760252979993,0.1296,3848.0,3847.9,1.0673]
[1760252981574,0.1296,3848.0,3847.9,0.6356]
[1760252986582,0.1296,3848.0,3847.9,1.1045]
[1760252987794,0.0046,3848.5,3848.0,0.6336]
[1760252988200,0.0046,3848.5,3848.2,0.6336]
[1760252988405,13.263106,3848.3,3847.9,0.002]
[1760252988618,3.405505,3848.3,3847.9,0.002]
[1760252988937,5.032505,3848.4,3848.0,0.6336]
[1760252989619,10.826189,3848.2,3847.9,0.002]
[1760252990792,0.099,3848.2,3847.9,0.002]
[1760252991416,11.602251,3848.2,3847.9,0.002]
[1760252992340,11.602251,3848.2,3847.9,0.4709]
[1760252992520,11.602251,3848.2,3847.9,0.002]
[1760252993429,10.726773,3848.2,3847.9,0.002]
[1760252997135,9.881321,3848.2,3847.9,0.4648]
[1760252997335,7.619502,3848.2,3847.9,0.002]
[1760252997633,5.22958774,3848.5,3848.1,0.2282]
[1760252997634,0.0046,3848.5,3848.1,0.2282]
[1760252997832,0.0046,3848.5,3848.2,0.4628]
[1760252998218,0.1296,3848.2,3848.1,0.2282]
[1760252998908,0.407608,3848.8,3848.1,0.2282]
[1760252998909,0.18995948,3848.8,3848.1,0.691]
[1760252999268,4.44430661,3849.2,3848.2,0.4628]
[1760252999540,3.710293,3848.8,3848.2,0.4628]
[1760252999835,4.253794,3849.3,3848.3,0.6336]
[1760253000001,3.516459,3849.0,3848.4,0.4628]
[1760253000207,3.122415,3849.0,3848.4,0.4628]
[1760253001039,1.92,3848.7,3848.4,0.4628]
[1760253001408,3.378223,3848.9,3848.4,0.4628]
[1760253002244,15.061824,3849.2,3848.4,0.4628]
[1760253002445,4.15109005,3849.4,3848.5,0.6336]
[1760253002652,4.15109005,3849.1,3848.4,0.4628]
[1760253003090,1.92,3848.7,3848.1,0.2282]
[1760253003205,1.92,3848.7,3848.3,0.4628]
[1760253003399,1.92,3848.7,3848.4,0.4628]
[1760253003605,1.92,3848.7,3848.5,0.4628]
[1760253003855,1.92,3848.7,3848.6,0.4628]
[1760253005707,0.40755286,3849.3,3848.2,0.6336]
[1760253005913,2.32755286,3849.3,3848.3,0.61234]
[1760253006125,3.57834,3849.2,3848.3,0.14954]
[1760253006355,3.57834,3849.2,3848.4,0.4628]
[1760253006356,2.95134,3849.2,3848.4,0.4628]
[1760253006962,1.92,3848.9,3848.2,0.6336]
[1760253007113,1.92,3849.0,3848.2,0.6336]
[1760253007315,1.92,3849.0,3848.3,0.4628]
[1760253007866,1.92,3848.7,3848.3,0.4628]
[1760253008312,1.92,3848.7,3848.4,0.4628]
[1760253010839,0.1012,3849.1,3848.4,0.4628]
[1760253011009,1.92,3848.8,3848.3,0.4628]
[1760253011214,1.92,3848.9,3848.4,0.4628]
[1760253011631,1.92,3848.7,3848.4,0.4628]
[1760253012018,8.190327,3848.8,3848.5,0.4628]
[1760253012224,1.92,3848.9,3848.5,0.4628]
[1760253012641,1.92,3848.7,3848.5,0.4628]
[1760253012848,1.92,3848.8,3848.5,0.4628]
[1760253013032,1.92,3848.7,3848.3,0.19582]
[1760253013228,1.92,3848.9,3848.4,0.4628]
[1760253013624,1.92,3848.7,3848.5,0.4628]
[1760253013814,1.92,3848.7,3848.3,0.65862]
[1760253014010,8.18985,3848.8,3848.4,0.4628]
[1760253014218,1.92,3848.9,3848.3,0.19582]
[1760253014416,1.92,3848.9,3848.3,0.65862]
[1760253014653,1.92,3848.7,3848.3,0.65862]
[1760253014962,1.92,3848.9,3848.4,0.4628]
[1760253015156,1.92,3848.7,3848.1,0.6336]
[1760253015446,4.15109005,3848.4,3847.8,0.002]
[1760253015614,1.92,3848.0,3847.8,0.002]
[1760253015813,18.181001,3848.0,3847.9,0.001]
[1760253016013,18.282201,3848.0,3847.9,0.001]
[1760253016750,18.032201,3848.0,3847.9,0.001]
[1760253017350,21.385841,3848.0,3847.9,0.001]
[1760253017551,5.674267,3848.0,3847.9,0.001]
[1760253018282,6.081883,3848.0,3847.9,0.001]
[1760253018483,5.812883,3848.0,3847.9,0.001]
[1760253019274,12.282868,3848.0,3847.9,0.001]
[1760253020284,19.821812,3848.0,3847.9,0.001]
[1760253020478,17.519998,3848.0,3847.9,0.001]
[1760253021256,0.1012,3848.0,3847.9,0.001]
[1760253021456,14.119998,3848.0,3847.9,0.001]
[1760253021853,3.208137,3848.0,3847.9,0.001]
[1760253022357,9.058603,3848.0,3847.9,0.001]
[1760253022571,8.058603,3848.0,3847.9,0.001]
[1760253023484,2.593124,3848.0,3847.9,0.001]
[1760253023685,2.695843,3848.0,3847.9,0.001]
[1760253024399,2.695366,3848.0,3847.9,0.001]
[1760253024876,0.1012,3848.4,3847.9,0.457]
[1760253024877,3.230445,3848.4,3847.9,0.457]
[1760253025190,5.063839,3848.6,3847.9,0.457]
[1760253025403,4.436577,3848.5,3847.9,0.457]
[1760253025735,4.15109005,3848.3,3847.9,0.001]
[1760253025866,3.930971,3848.2,3847.9,0.001]
[1760253026699,1.92,3848.1,3847.9,0.001]
[1760253027000,24.7454041,3848.0,3847.9,0.001]
[1760253027376,24.8466041,3848.0,3847.9,0.001]
[1760253027779,40.3233801,3848.0,3847.9,0.001]
[1760253028099,40.83539384,3848.0,3847.9,0.001]
[1760253028300,31.92,3847.9,3847.8,0.002]
[1760253028486,31.92,3847.9,3847.6,0.002]
[1760253028487,31.92,3847.7,3847.6,0.002]
[1760253028799,10.2221801,3847.7,3847.6,0.002]
[1760253029000,1.92,3847.5,3847.4,0.002]
[1760253029179,40.2221801,3847.3,3845.8,0.002]
[1760253029671,40.73167553,3847.3,3845.8,0.002]
[1760253030901,40.3238801,3847.3,3845.8,0.002]
[1760253031199,40.42823278,3847.3,3845.8,0.002]
[1760253032868,31.92,3847.2,3845.8,0.002]
[1760253033169,10.42823278,3847.3,3845.8,0.002]
[1760253033170,31.92,3846.9,3845.8,0.002]
[1760253033376,36.07109005,3846.9,3845.8,0.002]
[1760253033608,36.17279005,3846.9,3845.8,0.002]
[1760253033900,36.58064861,3846.9,3845.8,0.002]
[1760253036934,31.92,3846.8,3845.8,0.002]
[1760253037103,35.85894805,3845.9,3845.8,0.002]
[1760253037278,36.09514805,3845.9,3845.8,0.002]
[1760253037614,36.19744805,3845.9,3845.8,0.002]
[1760253037912,36.60535049,3845.9,3845.8,0.002]
[1760253038288,36.73899249,3845.9,3845.8,0.002]
[1760253040012,31.93956949,3845.9,3845.8,0.002]
[1760253040393,32.31366949,3845.9,3845.8,0.002]
[1760253041207,31.43845449,3845.9,3845.8,0.002]
[1760253042378,32.31371649,3845.9,3845.8,0.002]
[1760253042583,30.82458549,3845.9,3845.8,0.002]
[1760253043300,6.73899249,3845.9,3845.8,0.002]
[1760253043507,31.07236549,3845.9,3845.8,0.002]
[1760253043818,19.18621744,3845.9,3845.8,0.002]
[1760253044316,24.64054744,3845.9,3845.8,0.002]
[1760253044491,27.24071905,3845.9,3845.8,0.002]
[1760253045111,22.72431805,3845.9,3845.8,0.002]
[1760253045284,23.09854561,3845.9,3845.8,0.002]
[1760253045689,20.49054561,3845.9,3845.8,0.002]
[1760253045886,11.99386361,3845.9,3845.8,0.002]
[1760253046082,6.155251,3845.9,3845.8,0.002]
[1760253046283,8.77026166,3845.9,3845.8,0.002]
[1760253046489,28.65850466,3845.9,3845.8,0.002]
[1760253047388,35.59261666,3845.9,3845.8,0.002]
[1760253047590,34.34687966,3845.9,3845.8,0.002]
[1760253048641,38.77026166,3845.9,3845.8,0.002]
[1760253049438,8.77026166,3845.9,3845.8,0.002]
[1760253049632,38.77026166,3845.9,3845.8,0.002]
[1760253050441,38.77026166,3845.9,3845.5,0.002]
[1760253050442,2.60037445,3845.6,3845.5,0.002]
[1760253050741,42.82255455,3845.6,3845.5,0.002]
[1760253051042,42.82282505,3845.2,3845.0,0.002]
[1760253051415,42.92182505,3845.2,3845.0,0.002]
[1760253053848,43.32985981,3845.2,3845.0,0.002]
[1760253061078,43.32985981,3845.2,3844.7,0.002]
[1760253061079,2.60091552,3844.8,3844.7,0.002]
[1760253061234,42.82336624,3844.4,3843.2,11.3051891]
[1760253061429,37.82537185,3844.4,3843.2,11.3051891]
[1760253061760,39.86541385,3844.4,3843.2,11.3051891]
[1760253064548,40.27354323,3844.4,3843.2,11.3051891]
[1760253065678,17.38353452,3844.4,3843.2,11.3051891]
[1760253065883,40.27354323,3844.4,3843.2,11.3051891]
[1760253066480,35.02831552,3844.4,3843.2,11.3051891]
[1760253066680,22.44651823,3844.4,3843.2,14.36696569]
[1760253066885,35.99143623,3844.4,3843.2,13.90716569]
[1760253067282,35.99143623,3844.4,3843.2,11.3051891]
[1760253067850,40.27354323,3844.4,3843.2,11.3051891]
[1760253068197,21.90981323,3844.4,3843.2,11.3051891]
[1760253068364,21.90981323,3844.4,3843.3,2.60192065]
[1760253068961,24.26059623,3844.4,3843.3,2.60192065]
[1760253069683,24.26059623,3844.4,3843.2,13.90717143]
[1760253069889,38.42982123,3844.4,3843.2,11.3051891]
[1760253070754,36.03458323,3844.4,3843.2,13.90718615]
[1760253070972,38.59331823,3844.4,3843.2,13.90718615]
[1760253071492,36.42219523,3844.4,3843.2,13.90718615]
[1760253071986,9.86541385,3844.4,3843.3,2.60189396]
[1760253072192,25.39201985,3844.4,3843.3,2.60189396]
[1760253072796,25.39201985,3844.4,3843.2,13.90716788]
[1760253073096,38.25546985,3844.4,3843.2,13.90716788]
[1760253073290,34.30575785,3844.4,3843.2,13.90716788]
[1760253073607,33.25397385,3844.4,3843.3,2.60190499]
[1760253073770,33.25397385,3844.4,3843.2,11.3051891]
[1760253074097,38.50655185,3844.4,3843.2,13.90717389]
[1760253074403,37.53997185,3844.4,3843.2,11.3051891]
[1760253074762,36.72012185,3844.4,3843.2,11.3051891]
[1760253075110,38.37077585,3844.4,3843.2,11.3051891]
[1760253075306,37.57487442,3844.4,3843.2,11.3051891]
[1760253076161,40.27352242,3844.4,3843.2,11.3051891]
[1760253076361,38.84908685,3844.4,3843.2,13.9071837]
[1760253077008,28.92101714,3844.4,3843.9,0.002]
[1760253077163,34.86369385,3844.4,3843.9,0.002]
[1760253077564,31.97219385,3844.4,3843.9,0.002]
[1760253078321,36.30369385,3844.4,3843.9,0.002]
[1760253078497,32.32420885,3844.4,3843.9,0.002]
[1760253078707,32.05566785,3844.4,3843.9,0.002]
[1760253079212,2.70018614,3844.4,3843.9,0.002]
[1760253079364,20.92374714,3844.4,3843.9,0.002]
[1760253079763,19.16530614,3844.4,3843.9,0.002]
[1760253080265,19.80693114,3844.4,3843.9,0.002]
[1760253081000,15.07907914,3844.4,3843.9,0.002]
[1760253081293,15.07621014,3844.4,3843.9,0.002]
[1760253081662,14.65234614,3844.4,3843.9,0.002]
[1760253081919,4.893791,3844.4,3843.9,2.60350534]
[1760253082118,15.138304,3844.6,3843.9,0.002]
[1760253082333,14.703613,3844.4,3843.9,0.002]
[1760253082486,14.703613,3844.4,3843.9,2.60351724]
[1760253082696,11.253613,3844.4,3844.0,2.60145559]
[1760253083041,8.104696,3844.4,3844.1,2.60338037]
[1760253083193,8.339731,3844.5,3844.1,2.60338037]
[1760253083393,8.339731,3844.5,3844.1,0.002]
[1760253083691,8.02596,3844.5,3844.1,0.002]
[1760253083911,1.92,3844.5,3844.1,2.60338161]
[1760253084113,0.001,3844.7,3844.4,3.06098614]
[1760253084394,0.001,3844.7,3844.6,2.60105082]
[1760253085317,0.001,3844.7,3844.5,2.60110069]
[1760253085622,0.001,3844.7,3844.4,0.4645]
[1760253085990,0.001,3844.7,3844.5,0.4645]
[1760253086318,0.001,3844.7,3844.6,2.60105082]
[1760253086622,0.001,3844.7,3844.6,3.1939763]
[1760253087410,0.001,3844.7,3844.6,3.06555082]
[1760253089128,0.001,3844.7,3844.6,2.60105082]
[1760253090441,0.001,3844.7,3844.5,2.60109973]
[1760253090646,0.001,3844.7,3844.5,3.06559973]
[1760253091041,0.001,3844.7,3844.3,0.002]
[1760253091337,0.001,3844.7,3844.4,2.60118253]
[1760253091623,0.001,3844.7,3844.4,3.06568253]
[1760253093123,0.001,3844.7,3844.4,0.4645]
[1760253093315,11.088174,3844.6,3844.3,0.002]
[1760253093528,11.088174,3844.6,3844.3,2.60324009]
[1760253093709,11.088174,3844.6,3844.3,0.002]
[1760253093912,6.737619,3844.6,3844.3,0.002]
[1760253094210,1.92,3844.5,3844.3,0.002]
[1760253094429,2.019,3844.5,3844.3,0.002]
[1760253094611,25.17148114,3844.4,3844.3,0.002]
[1760253094939,20.30038314,3844.4,3844.3,0.002]
[1760253095104,20.39938314,3844.4,3844.3,0.002]
[1760253095729,22.62148314,3844.4,3844.3,0.002]
[1760253095934,22.60148314,3844.4,3844.3,0.002]
[1760253096209,19.04008414,3844.4,3844.3,0.002]
[1760253096407,15.59166514,3844.4,3844.3,0.002]
[1760253096626,4.60018614,3844.4,3844.3,0.002]
[1760253096831,14.70130914,3844.4,3844.3,0.002]
[1760253097339,11.19387314,3844.4,3844.3,0.002]
[1760253097641,11.60194132,3844.4,3844.3,0.002]
[1760253097805,18.72174532,3844.4,3844.3,0.002]
[1760253098764,19.97629132,3844.4,3844.3,0.002]
[1760253099043,18.99593132,3844.4,3844.3,0.002]
[1760253099245,18.59584832,3844.4,3844.3,0.002]
[1760253099738,5.00825432,3844.4,3844.3,0.002]
[1760253099908,18.36468032,3844.4,3844.3,0.002]
[1760253100832,22.71383332,3844.4,3844.3,0.002]
[1760253101237,19.88589432,3844.4,3844.3,0.002]
[1760253101827,23.27596932,3844.4,3844.3,0.002]
[1760253102040,22.35417732,3844.4,3844.3,0.002]
[1760253102243,19.04096432,3844.4,3844.3,0.002]
[1760253103051,9.03132032,3844.4,3844.3,0.002]
[1760253103245,8.93232032,3844.4,3844.3,0.002]
[1760253103735,9.03132032,3844.4,3844.3,0.002]
[1760253103946,13.86847985,3844.4,3844.3,0.002]
[1760253106856,39.86541385,3844.4,3844.3,0.002]
[1760253107026,30.11303485,3844.4,3844.3,0.002]
[1760253107627,29.03990185,3844.4,3844.3,0.002]
[1760253107868,21.29371385,3844.4,3844.3,0.002]
[1760253108607,9.83027771,3844.4,3844.3,0.002]
[1760253109103,32.32459771,3844.4,3844.3,0.002]
[1760253109471,34.92578385,3844.4,3844.3,0.002]
[1760253109886,35.43894585,3844.4,3844.3,0.002]
[1760253110198,33.25323285,3844.4,3844.3,0.002]
[1760253110508,33.35223285,3844.4,3844.3,0.002]
[1760253110964,23.927339,3844.5,3844.4,0.12127109]
[1760253111293,29.17256671,3844.5,3844.4,0.12127109]
[1760253111687,31.77368519,3844.5,3844.4,0.12127109]
[1760253112229,31.77660919,3844.5,3844.4,0.12127109]
[1760253112985,38.49537219,3844.5,3844.4,0.12127109]
[1760253113291,38.66836476,3844.5,3844.4,0.12127109]
[1760253113661,35.29513976,3844.5,3844.4,0.12127109]
[1760253114094,38.98088676,3844.5,3844.4,0.12127109]
[1760253114296,35.14999776,3844.5,3844.4,0.12127109]
[1760253115095,35.01441476,3844.5,3844.4,0.12127109]
[1760253115765,34.64598976,3844.5,3844.4,0.12127109]
[1760253116203,34.95033576,3844.5,3844.4,0.12127109]
[1760253117182,35.32112476,3844.5,3844.4,0.12127109]
[1760253117383,34.69512476,3844.5,3844.4,0.12127109]
[1760253118299,35.32925476,3844.5,3844.4,0.12127109]
[1760253119211,32.50392376,3844.5,3844.4,0.12127109]
[1760253120205,33.28545976,3844.5,3844.4,0.12127109]
[1760253120516,32.87740719,3844.5,3844.4,0.12127109]
[1760253121291,39.76734619,3844.5,3844.4,0.12127109]
[1760253121598,48.09345131,3844.5,3844.4,0.12127109]
[1760253122312,8.78087948,3844.5,3844.4,0.12127109]
[1760253122478,3.054689,3844.5,3844.4,0.12127109]
[1760253122670,11.73986004,3844.5,3844.4,0.12127109]
[1760253123301,14.00820904,3844.5,3844.4,0.12127109]
[1760253124198,19.84310804,3844.5,3844.4,0.12127109]
[1760253125280,42.8482236,3844.5,3844.4,0.12127109]
[1760253125684,43.12145425,3844.5,3844.4,0.12127109]
[1760253127410,34.52118614,3844.4,3844.3,0.002]
[1760253127781,34.52218614,3844.4,3844.3,0.002]
[1760253129912,13.73252714,3844.4,3844.3,0.002]
[1760253130520,2.31488,3844.4,3844.3,0.002]
[1760253130886,10.9991187,3844.4,3844.3,0.002]
[1760253131085,11.0001187,3844.4,3844.3,0.002]
[1760253131285,12.8483797,3844.4,3844.3,0.002]
[1760253131715,10.9323157,3844.4,3844.3,0.002]
[1760253132417,12.3740187,3844.4,3844.3,0.002]
[1760253132622,11.7353037,3844.4,3844.3,0.002]
[1760253133498,12.2346277,3844.4,3844.3,0.002]
[1760253133703,11.9610427,3844.4,3844.3,0.002]
[1760253134621,15.3272197,3844.4,3844.3,0.002]
[1760253135420,15.0867397,3844.4,3844.3,0.002]
[1760253135623,10.8788507,3844.4,3844.3,0.002]
[1760253136046,10.8798507,3844.4,3844.3,0.002]
[1760253136533,15.0670937,3844.4,3844.3,0.002]
[1760253137332,14.4402697,3844.4,3844.3,0.002]
[1760253137642,16.3738917,3844.4,3844.3,0.002]
[1760253138543,14.7657857,3844.4,3844.3,0.002]
[1760253138752,11.7847097,3844.4,3844.3,0.002]
[1760253139452,13.0716827,3844.4,3844.3,0.002]
[1760253139753,13.0706827,3844.4,3844.3,0.002]
[1760253140624,15.2346227,3844.4,3844.3,0.002]
[1760253141452,8.6852387,3844.4,3844.3,0.002]
[1760253141613,15.8910517,3844.4,3844.3,0.002]
[1760253142556,15.6857087,3844.4,3844.3,0.002]